Cogmind - Beta 12 @@@ ROGUE MODE // 2023.11.15 @ 21:21:51 Player: epb Result: Destroyed by B-36 Bruiser with Hammer Performance ------------- Evolutions (2) 1000 Regions Visited (7) 1400 Robots Destroyed (55) 275 Value Destroyed (1456) 1456 Prototype IDs (1) 20 Alien Tech Used (0) 0 Bonus (200) 200 TOTAL SCORE: 4351 Bonus ------- Entered Garrisons 200 Cogmind --------- Core Integrity 0/550 Matter 300/300 Energy 100/100 System Corruption 5% Temperature Cool (0) Movement Core (200) Ox3 Location -8/Materials Parts ------- > --- POWER (3) -------- (None) > --- PROPULSION (4) --- (None) > --- UTILITY (2) ------ Medium Storage Unit Signal Interpreter > --- WEAPON (2) ------- Hammer > --- INVENTORY (10) --- Shield Generator Relay Coupler [Sentry] (21) Relay Coupler [Demolisher] (24) Relay Coupler [Specialist] (22) Relay Coupler [Behemoth] (9) Segregator Trap Segregator Trap Segregator Trap Segregator Trap Stasis Trap (100%) Peak State ------------ > --- POWER ------------ Ion Engine Light Ion Engine Light Nuclear Core > --- PROPULSION ------- Carbon-fiber Leg Carbon-fiber Leg > --- UTILITY ---------- Signal Interpreter > --- WEAPON ----------- Heavy Particle Cannon Katana > --- INVENTORY -------- Light Ion Engine Medium Storage Unit Shield Generator Stasis Trap [Rating: 18] Favorites ----------- Power Ion Engine Engine Ion Engine Power Core Light Nuclear Core Propulsion Aluminum Leg Leg Aluminum Leg Utility Small Storage Unit Storage Small Storage Unit Processor Signal Interpreter Weapon Hammer Energy Gun Beam Rifle Energy Cannon Heavy Particle Cannon Ballistic Gun Assault Rifle Impact Weapon Hammer Slashing Weapon Katana Build | -11 -10 -10 -9 -9 -8 -8 -8 ------- Run | Jun Mat Min Mat Min Mat Gar Mat Slots Evolved 4 | . . . 2 . 2 . . Power 2 | . . . 2 . . . . Propulsion 2 | . . . . . 2 . . Utility . | . . . . . . . . Weapon . | . . . . . . . . Parts Attached 42 | 7 3 . 8 3 6 15 . Power 16 | 2 1 . 3 . 2 8 . Engine 12 | 2 . . 3 . 1 6 . Core 4 | . 1 . . . 1 2 . Reactor . | . . . . . . . . Propulsion 12 | 2 . . 3 1 3 3 . Treads . | . . . . . . . . Leg 12 | 2 . . 3 1 3 3 . Wheel . | . . . . . . . . Hover . | . . . . . . . . Flight . | . . . . . . . . Utility 5 | 1 1 . . 2 . 1 . Device . | . . . . . . . . Storage 4 | 1 1 . . 1 . 1 . Processor 1 | . . . . 1 . . . Hackware . | . . . . . . . . Protection . | . . . . . . . . Artifact . | . . . . . . . . Weapon 9 | 2 1 . 2 . 1 3 . Energy Gun 2 | 1 . . 1 . . . . Energy Cannon 1 | . . . . . . 1 . Ballistic Gun 3 | 1 1 . . . 1 . . Ballistic Cannon . | . . . . . . . . Launcher . | . . . . . . . . Special Weapon . | . . . . . . . . Impact Weapon 2 | . . . 1 . . 1 . Slashing Weapon 1 | . . . . . . 1 . Piercing Weapon . | . . . . . . . . Special Melee Weapon . | . . . . . . . . Unidentified Prototypes 1 | . . . . 1 . . . Parts Lost 30 | . 1 1 3 1 6 15 3 Power 12 | . . . 1 . 2 8 1 Propulsion 9 | . . . 1 . 4 3 1 Utility 2 | . . . . 1 . 1 . Weapon 7 | . 1 1 1 . . 3 1 Highest Loss Streak 7 | . 1 1 2 1 4 7 3 To Critical Strikes . | . . . . . . . . Average Slot Usage (%) 81 | . 84 73 83 98 74 66 57 Engine 18 | . 10 . 21 22 20 17 15 Core 7 | . 3 14 11 11 5 4 . Leg 17 | . 28 28 21 22 11 12 7 Storage 9 | . 14 14 11 10 9 5 9 Processor 7 | . . . . 10 9 9 9 Energy Gun 5 | . 8 . 3 11 1 . . Energy Cannon 2 | . . . . . . 8 7 Ballistic Gun 4 | . 18 16 5 . 6 . . Impact Weapon 7 | . . . 9 11 9 5 9 Naked Turns . | . . . . . . . . Heaviest Build 36 | 14 18 12 30 30 30 36 33 Greatest Support 30 | 20 20 20 20 20 30 30 15 Greatest Overweight (x) 9 | . . . 2 1 9 7 7 Average Overweight (x) . | . . . . 1 1 1 2 Largest Inventory Capacity 10 | 8 8 8 8 8 8 10 10 Average Capacity 8 | 7 8 8 8 7 8 7 10 Most Carried 10 | 2 6 6 5 8 8 10 10 Average Carried 5 | 1 4 6 3 6 7 5 10 Final Capacity 10 | 8 8 8 8 8 8 10 10 Final Carried 10 | 2 6 6 4 8 6 10 10 Class Distribution -------------------- 69% | Scavenger-Mutant 30% | Mutant Dominant Class ---------------- Mutant | -10/Materials Mutant | -10/Mines Scavenger-Mutant | -9/Materials Scavenger-Mutant | -9/Mines Scavenger-Mutant | -8/Materials Scavenger-Mutant | -8/Garrison Mutant | -8/Materials Resources | -11 -10 -10 -9 -9 -8 -8 -8 ----------- Run | Jun Mat Min Mat Min Mat Gar Mat Matter Collected 907 | 118 262 . 138 86 158 145 . Remotely . | . . . . . . . . Salvage Created 1888 | . 341 48 253 268 297 645 36 Parts 103 | . 24 8 11 11 11 38 . Haulers Intercepted . | . . . . . . . . Recyclers Shooed 3 | . 1 2 . . . . . Parts Field Recycled . | . . . . . . . . Retrieved Matter . | . . . . . . . . Parts Self-Destructed . | . . . . . . . . Prevented . | . . . . . . . . Kills | -11 -10 -10 -9 -9 -8 -8 -8 ------- Run | Jun Mat Min Mat Min Mat Gar Mat Combat Hostiles Destroyed 42 | . 7 3 4 . 8 19 1 Melee 15 | . . . 1 . . 14 . Guns 20 | . 7 3 2 . 8 . . Cannons 4 | . . . . . . 4 . Classes Destroyed 11 | . 4 . 3 2 1 1 . Worker 6 | . 3 . . 3 . . . Builder 1 | . . . . 1 . . . Tunneler 2 | . . . . 2 . . . Recycler 3 | . . . 1 2 . . . Watcher 1 | . 1 . . . . . . Swarmer 19 | . 3 3 . . 3 10 . Grunt 11 | . 4 . 1 . 3 2 1 Brawler 5 | . . . 1 . . 4 . Duelist 2 | . . . . . 1 1 . Sentry 3 | . . . 2 . 1 . . Hunter 2 | . . . . . . 2 . Best Kill Streak 4 | . 4 3 2 3 3 4 1 Combat Bots Only 4 | . 3 3 2 . 3 4 1 Max Kills in Single Turn 2 | . 2 1 1 1 1 1 1 Gunslinging . | . . . . . . . . Exploded . | . . . . . . . . Melee 1 | . . . 1 . . 1 . Uniques/NPCs Destroyed . | . . . . . . . . Combat | -11 -10 -10 -9 -9 -8 -8 -8 -------- Run | Jun Mat Min Mat Min Mat Gar Mat Damage Taken 3159 | . 316 103 429 . 574 1370 367 Core 692 | . 62 10 46 . 97 370 107 Absorbed by Shields . | . . . . . . . . Core Remaining (%) 86 | 100 . 71 . 88 . . . Volleys Fired 112 | . 27 9 15 12 26 23 . Largest 2 | . 2 2 1 1 1 1 . Hottest 75 | . 60 40 20 56 56 75 . Shots Fired 141 | . 49 14 15 14 26 23 . Gun 124 | . 49 14 15 14 26 6 . Cannon 17 | . . . . . . 17 . Launcher . | . . . . . . . . Special . | . . . . . . . . Kinetic 83 | . 32 14 15 . 16 6 . Thermal 41 | . . . . 14 10 17 . Explosive . | . . . . . . . . Electromagnetic 17 | . 17 . . . . . . Robot Hit Streak 13 | . 13 2 8 2 8 7 . Robot Miss Streak 3 | . 3 2 2 2 3 2 . Penetration Max . | . . . . . . . . Secondary Targets 1 | . . 1 . . . . . Max Gunslinging Chain 1 | . . 1 . . . . . Shots Hit Robots 138 | . 31 7 19 11 21 35 14 Core Hits 68 | . 19 3 7 4 15 20 . Critical Kills 2 | . . . . 1 . 1 . Critical Parts Destroyed 2 | . . . . 1 . . 1 Critical Strikes 8 | . . . . 3 2 1 2 Burn 3 | . . . . 1 2 . . Meltdown 1 | . . . . . . 1 . Smash 4 | . . . . 2 . . 2 Melee Attacks 70 | . . . 8 10 . 34 18 Impact 41 | . . . 8 10 . 5 18 Slashing 29 | . . . . . . 29 . Piercing . | . . . . . . . . Sneak Attacks 8 | . . . 1 7 . . . Combat Hostiles . | . . . . . . . . Follow-up Attacks . | . . . . . . . . Damage Inflicted 2989 | . 560 104 319 411 322 941 332 Guns 1083 | . 406 104 145 28 322 78 . Cannons 300 | . . . . . . 300 . Explosions 154 | . 154 . . . . . . Melee 1452 | . . . 174 383 . 563 332 Ramming . | . . . . . . . . Kinetic 809 | . 260 104 145 . 222 78 . Thermal 582 | . 154 . . 28 100 300 . Explosive . | . . . . . . . . Electromagnetic 146 | . 146 . . . . . . Impact 952 | . . . 174 383 . 63 332 Slashing 500 | . . . . . . 500 . Piercing . | . . . . . . . . Highest Corruption 5 | . . . 2 2 . 1 5 Average Corruption 1 | . . . 2 2 . 1 1 Corruption Purged . | . . . . . . . . Corruption Blocked . | . . . . . . . . Effects 26 | . . . 6 14 . 4 2 Message Errors 5 | . . . 2 3 . . . Matter Fused 3 | . . . . 3 . . . Heat Flow Errors 2 | . . . . . . 2 . Energy Discharges 4 | . . . . 3 . . 1 Parts Rejected 2 | . . . 1 . . . 1 Parts Fused 1 | . . . . . . 1 . Data Loss (minor) 5 | . . . 3 2 . . . Data Loss (major) 1 | . . . . 1 . . . Misfires 2 | . . . . 2 . . . Alerts 1 | . . . . . . 1 . Overload Shots . | . . . . . . . . Overflow Damage 253 | . 27 . 48 86 . 45 47 Projectiles 20 | . . . . . . 20 . Explosions 27 | . 27 . . . . . . Melee 206 | . . . 48 86 . 25 47 Knockbacks 3 | . . . . 1 . . 2 Impact 3 | . . . . 1 . . 2 Kinetic . | . . . . . . . . Secondary . | . . . . . . . . Self-Inflicted Damage 31 | . 31 . . . . . . Shots 1 | . 1 . . . . . . Rammed . | . . . . . . . . Targets Rammed . | . . . . . . . . Kicked . | . . . . . . . . Crushed . | . . . . . . . . Highest Temperature 395 | . 60 . 46 378 395 275 . Average Temperature 115 | . 28 . 13 179 155 93 . Received Heat Transfer 810 | . 165 . 177 . 180 234 54 Effects 12 | . . . . 6 6 . . Shutdowns 3 | . . . . 1 2 . . Energy Bleed 1 | . . . . 1 . . . Interference 7 | . . . . 4 3 . . Matter Decay 1 | . . . . . 1 . . Siege Activations . | . . . . . . . . Robots Corrupted . | . . . . . . . . Combat Hostiles . | . . . . . . . . Parts Fried 8 | . . . 1 7 . . . Impact Corruptions 8 | . . . 2 4 . . 2 Robots Melted 1 | . . . . . . 1 . Combat Hostiles 1 | . . . . . . 1 . Parts Melted 3 | . . . . . 1 2 . Heat Transferred 1199 | . 200 . . 148 407 444 . Parts Sabotaged . | . . . . . . . . Parts Stolen . | . . . . . . . . Parts Stripped . | . . . . . . . . Power Chain Reactions 3 | . 3 . . . . . . Missiles Intercepted . | . . . . . . . . Alert | -11 -10 -10 -9 -9 -8 -8 -8 ------- Run | Jun Mat Min Mat Min Mat Gar Mat Peak Influence 420 | . 223 68 186 77 103 420 234 Initial 204 | . . 8 26 72 3 26 204 Average 110 | . 121 59 92 29 43 258 211 Maximum Alert Level 2 | . 1 . . . . 2 1 Low Security (%) 75 | 100 80 100 100 100 100 24 . Level 1 22 | . 19 . . . . 65 100 Level 2 2 | . . . . . . 10 . Level 3 . | . . . . . . . . Level 4 . | . . . . . . . . Level 5 . | . . . . . . . . High Security . | . . . . . . . . Max Security . | . . . . . . . . Squads Dispatched 1 | . 1 . . . . . . Investigation 1 | . 1 . . . . . . Extermination . | . . . . . . . . Reinforcement . | . . . . . . . . Assault . | . . . . . . . . Garrison . | . . . . . . . . Intercept . | . . . . . . . . Searches Triggered . | . . . . . . . . Construction Impeded . | . . . . . . . . Haulers Reinforced . | . . . . . . . . Active Scanning Responses . | . . . . . . . . Cargo Convoy Interrupts . | . . . . . . . . Stealth | -11 -10 -10 -9 -9 -8 -8 -8 --------- Run | Jun Mat Min Mat Min Mat Gar Mat Distress Signals 2 | . 1 . 1 . . . . Communications Jammed . | . . . . . . . . Distress Signals . | . . . . . . . . Times Spotted 50 | . 9 2 7 . 8 20 4 Peak Tracking Total 6 | . 3 2 3 . 3 6 3 Tactical Retreats 1 | . . . . . . . 1 Traps | -11 -10 -10 -9 -9 -8 -8 -8 ------- Run | Jun Mat Min Mat Min Mat Gar Mat Traps Triggered 5 | . 1 . . . . 4 . Indirectly . | . . . . . . . . Trap Hack Attempts . | . . . . . . . . Triggered . | . . . . . . . . Disarmed . | . . . . . . . . Reprogrammed . | . . . . . . . . Reused . | . . . . . . . . Traps Extracted . | . . . . . . . . Installed . | . . . . . . . . Triggered . | . . . . . . . . Most Traps Carried 5 | . . . . 3 3 5 5 Machines | -11 -10 -10 -9 -9 -8 -8 -8 ---------- Run | Jun Mat Min Mat Min Mat Gar Mat Machines Disabled 2 | . 1 . . . . 1 . Max in Single Turn 1 | . 1 . . . . 1 . Garrison Relay 1 | . . . . . . 1 . Machines Repaired . | . . . . . . . . Machines Sabotaged . | . . . . . . . . Overloaded Fab Kills . | . . . . . . . . Hacking | -11 -10 -10 -9 -9 -8 -8 -8 --------- Run | Jun Mat Min Mat Min Mat Gar Mat Machines Accessed 3 | . 1 . . . 1 1 . Terminals 1 | . . . . . . 1 . Fabricators . | . . . . . . . . Repair Stations . | . . . . . . . . Recycling Units 1 | . 1 . . . . . . Scanalyzers . | . . . . . . . . Garrison Access 1 | . . . . . 1 . . Total Hacks 6 | . 1 . . . 3 2 . Successful 3 | . 1 . . . 2 . . Failed 3 | . . . . . 1 2 . Catastrophic . | . . . . . . . . Database Lockouts . | . . . . . . . . Manual 3 | . 3 . . . . . . Terminals 2 | . . . . . . 2 . Fabricators . | . . . . . . . . Repair Stations . | . . . . . . . . Recycling Units 1 | . 1 . . . . . . Scanalyzers . | . . . . . . . . Garrison Access 3 | . . . . . 3 . . Terminal Hacks . | . . . . . . . . Fabricator Hacks . | . . . . . . . . Repair Station Hacks . | . . . . . . . . Recycling Unit Hacks 1 | . 1 . . . . . . Report Inventory 1 | . 1 . . . . . . Scanalyzer . | . . . . . . . . Garrison Access Hacks 2 | . . . . . 2 . . Unlock Access 1 | . . . . . 1 . . Coupler Status 1 | . . . . . 1 . . Unauthorized Hacks . | . . . . . . . . Terminals . | . . . . . . . . Fabricators . | . . . . . . . . Repair Stations . | . . . . . . . . Recycling Units . | . . . . . . . . Scanalyzers . | . . . . . . . . Garrison Access . | . . . . . . . . Data Cores Recovered . | . . . . . . . . Used . | . . . . . . . . Hacking Detections 3 | . 1 . . . 1 1 . Full Trace Events 2 | . 1 . . . . 1 . Feedback Events 1 | . . . . . . 1 . Corruption 1 | . . . . . . 1 . Feedback Blocked . | . . . . . . . . Robot Schematics Acquired . | . . . . . . . . Robots Built . | . . . . . . . . Authchips . | . . . . . . . . Time . | . . . . . . . . Total Robot Build Rating . | . . . . . . . . Part Schematics Acquired . | . . . . . . . . Parts Built . | . . . . . . . . Authchips . | . . . . . . . . Time . | . . . . . . . . Total Part Build Rating . | . . . . . . . . Parts Repaired . | . . . . . . . . Time . | . . . . . . . . Parts Recycled . | . . . . . . . . Recycled Matter . | . . . . . . . . Retrieved Matter . | . . . . . . . . Retrieved Components . | . . . . . . . . Parts Scanalyzed . | . . . . . . . . Part Schematics Acquired . | . . . . . . . . Parts Damaged . | . . . . . . . . Bothacking | -11 -10 -10 -9 -9 -8 -8 -8 ------------ Run | Jun Mat Min Mat Min Mat Gar Mat Used RIF Installer . | . . . . . . . . Robots Hacked . | . . . . . . . . Non-combat . | . . . . . . . . Combat . | . . . . . . . . Robot Hacks Applied . | . . . . . . . . Relay Couplers Released 4 | . . . . . . 4 . Machine Destruction 4 | . . . . . . 4 . Fabnet Peak Effective % . | . . . . . . . . Robots Rewired . | . . . . . . . . Allies Hacked . | . . . . . . . . Hacks Repelled . | . . . . . . . . Allies | -11 -10 -10 -9 -9 -8 -8 -8 -------- Run | Jun Mat Min Mat Min Mat Gar Mat Total Allies 1 | . . . . 1 . . . Largest Group 1 | . . . . 1 . . . Highest-Rated Group 31 | . . . . 31 . . . Highest-Rated Ally 31 | . . . . 31 . . . Total Orders . | . . . . . . . . Ally Attacks . | . . . . . . . . Total Damage . | . . . . . . . . Kills . | . . . . . . . . Allies Corrupted . | . . . . . . . . Allies Melted . | . . . . . . . . Intel | -11 -10 -10 -9 -9 -8 -8 -8 ------- Run | Jun Mat Min Mat Min Mat Gar Mat Robot Analysis Total . | . . . . . . . . Derelict Logs Recovered 1 | . . . . 1 . . . Drone Launches . | . . . . . . . . Drone Recoveries . | . . . . . . . . Exploration | -11 -10 -10 -9 -9 -8 -8 -8 ------------- Run | Jun Mat Min Mat Min Mat Gar Mat Turns Passed 3606 | 113 439 49 389 1036 582 806 192 Spaces Moved 1661 | 89 268 22 178 513 222 318 51 Core 19 | 7 . . . . 1 10 1 Treads . | . . . . . . . . Legs 1642 | 82 268 22 178 513 221 308 50 Wheels . | . . . . . . . . Hover . | . . . . . . . . Flight . | . . . . . . . . Fastest Speed 50 | 50 120 120 120 190 120 100 260 Average Speed 181 | 114 120 120 178 190 231 196 262 Slowest Speed 500 | 120 120 120 260 190 500 400 400 Overloaded Moves . | . . . . . . . . Propulsion Burnouts . | . . . . . . . . Robots Hopped . | . . . . . . . . Cave-ins Triggered . | . . . . . . . . Exploration Rate (%) 23 | 6 42 6 18 61 15 32 8 Regions Visited 7 Branch Regions 2 Pre-discovered Areas . | . . . . . . . . Known Exits Taken 2 | . . . . 1 1 . . Unknown Exits Taken 4 | 1 1 1 1 . . . . Scrap Searched 1 | . . . . 1 . . . Spaces Dug . | . . . . . . . . Terrain Destroyed 9 | . 9 . . . . . . Melee . | . . . . . . . . Projectile . | . . . . . . . . AOE 9 | . 9 . . . . . . Terrain Rammed . | . . . . . . . . Walls Destroyed . | . . . . . . . . Machines Disabled . | . . . . . . . . Actions | -11 -10 -10 -9 -9 -8 -8 -8 --------- Run | Jun Mat Min Mat Min Mat Gar Mat Total 1989 | 96 336 30 218 545 264 421 79 Wait 68 | . 33 . 7 . 8 10 10 Move 1654 | 88 267 21 177 512 221 317 51 Hop . | . . . . . . . . Pick Up 25 | 1 5 . 3 5 1 10 . Fast Attach 26 | 6 1 . 2 2 4 11 . Attach 12 | . 1 . 5 1 2 3 . Detach . | . . . . . . . . Swap 5 | 1 1 . 1 1 . 1 . Drop 7 | . 1 . . 2 2 2 . Fire 112 | . 27 9 15 12 26 23 . Melee 70 | . . . 8 10 . 34 18 Ram . | . . . . . . . . Kick . | . . . . . . . . Crush . | . . . . . . . . Escape Stasis 10 | . . . . . . 10 . Rewire . | . . . . . . . . Trap . | . . . . . . . . Miscellaneous . | . . . . . . . . Route ------- -11/Junkyard -10/Materials -10/Mines -9/Materials (discovered 2 exits: [*Min] / [*Sto]) -9/Mines -8/Materials (discovered 2 exits: Fac / Gar) -8/Garrison -8/Materials History --------- Turn | Location | Event 13 | -11/Junkyard | Discovered new exit (range 16) 114 | -11/Junkyard | Entered Materials 300 | -10/Materials | Build established: Mutant 498 | -10/Materials | Discovered new exit (range 13) 553 | -10/Materials | Entered Mines 590 | -10/Mines | Discovered new exit (range 8) 602 | -10/Mines | Entered Materials 602 | -9/Materials | Evolved 2 slots: Power x2 780 | -9/Materials | Discovered new exit (range 15) 917 | -9/Materials | Discovered new exit (range 7) 966 | -9/Materials | Build established: Scavenger-Mutant 991 | -9/Materials | Entered Mines 1025 | -9/Mines | Received a Mining Laser from a helpful Derelict 1101 | -9/Mines | Learned location of 1 exit from Materials 1156 | -9/Mines | Found a damaged Exp. Sensor Array with a note attached 1164 | -9/Mines | Found Prototype Device 1166 | -9/Mines | Identified Exp. Sensor Array 1388 | -9/Mines | Found a hidden stash of uninstalled traps 2016 | -9/Mines | Discovered new exit (range 5) 2023 | -9/Mines | Identified exit to Materials 2027 | -9/Mines | Entered Materials 2027 | -8/Materials | Evolved 2 slots: Propulsion x2 2028 | -8/Materials | Identified exit to Factory 2444 | -8/Materials | Identified exit to Garrison 2558 | -8/Materials | Lost 4 parts (1p3n) 2609 | -8/Materials | Entered Garrison 2688 | -8/Garrison | Lost 7 parts (3p1n1u2w) 2749 | -8/Garrison | Core integrity fell below 50% 2956 | -8/Garrison | Core integrity fell below 20% 3046 | -8/Garrison | Triggered checkpoint 3128 | -8/Garrison | Discovered new exit (range 10) 3286 | -8/Garrison | Triggered checkpoint 3334 | -8/Garrison | Garrison Relay disabled 3413 | -8/Garrison | Identified exit to Materials 3415 | -8/Garrison | Entered Materials 3605 | -8/Materials | Lost 3 parts (1p1n1w) 3607 | -8/Materials | Destroyed by B-36 Bruiser with Hammer Last Messages --------------- GOAL=ESCAPE You have entered the same map type at the same depth as a previous visit, though this is a different location at that depth rather than "revisiting" the exact same area. 03447_ K-01 Serf collects debris. 03555_ G-47 Trooper knocked back. 03559_ Ion Engine destroyed. 03561_ Destroyed Imp. Heat Sink. 03561_ G-47 Trooper system corrupted by crushing effect. 03571_ Carbon-fiber Leg destroyed. 03572_ G-47 Trooper suffers critical hit (Smash). 03572_ Destroyed Lgt. Nuclear Core. 03572_ G-47 Trooper system corrupted by crushing effect. 03572_ G-47 Trooper knocked back. 03574_ Hvy. Particle Cannon destroyed. 03574_ System corrupted by crushing effect (+4). 03579_ System corrupted: Energy discharge (-106). 03580_ B-36 Bruiser suffers critical hit (Smash). 03583_ Knocked back. 03599_ System corrupted: Rnf. Ion Engine rejected. Map ----- +----------------------------------------------------+ | ?????????????????????????????????????????????????? | | ?????????????????????????????????????????????????? | | ?????????????????????????????????????????????????? | | ?????????????????????????????????????????????????? | | ?????????????????????????????????????????????????? | | ?????????????????????????????????????????????????? | | ?????????????????????????????????????????????????? | | ?????????????????????????????????????????????????? | | ?????????????????????????????????????????????????? | | ?????????????????????????????????????????????????? | | ??????????????????????????????????####???????????? | | ?????????????????????????????????? #???????????? | | ????????????????????????????#????? #???????????? | | ????????????????????????????# """" #???????????? | | ????????????????????????????# """" %#???????????? | | ????????????????????????????# #???????????? | | ????????????????????????????# """" #???????????? | | ????????????????????????????# """" #???????????? | | ????????????????????????????# """" #???????????? | | ?????????????????###+##?????# #???????????? | | ???????????####### ##########+###########????? | | ???????? #????? | | ???????? T #????? | | ???????? % #????? | | ??????????????#### ###b#############+######### | | ?????????????????####### @ # [ | | ???????????????????????# # [ | | ???????????????????????# # | | ???????????????????????# # """" """" | | ???????????????????????# # """" """" | | ???????????????????????# ! # """" """" | | ????????????????????????########################## | | | | | | | | | | | | | | | | | | | | | | | | | | | | | | | | | | | | | +----------------------------------------------------+ Best States ------------- Heat Dissipation 31 Energy Generation 26 Energy Capacity 475 Matter Stores 300 Matter Capacity 500 Sight Range 16 Terrain Scan Density 10 Evasion (%) 55 Item Schematics ----------------- None Robot Schematics ------------------ None Fabricated ------------ Nothing Alien Tech Used ----------------- None Achievements -------------- None Challenges ------------ None Game ------ Seed BiocellHellfireFirepult Manual? 0 Play Time 00:21:18 Cumulative 15.1 hours Start 2023.11.15 @ 20:59:31 End 2023.11.15 @ 21:21:51 Sessions 1 Manual Loads 0 Difficulty Rogue Special Mode None Game No. 39 Rogue 39 Adventurer 0 Explorer 0 Win Type - Total 0 Types 0/0/0/0/0/0/0/0/0 Lore% 11 Gallery% 23 Achievement% 17 Wizard Run 0 Options --------- ASCII 0 Keyboard 0 Movement Vi Keybinds 0 Fullscreen 2 Font 14/TerminusBold Map View 72x54 Tactical HUD 1 Map Filters NONE Filters NONE Steam X RUN: 345026bc-5ff8-4732-a3ee-610713bc8732